bitfinex-derivatives/quotes_BNBF0:USTF0_20250710
["timestamp","ask_amount","ask_price","bid_price","bid_amount"]
[1752175385563,1.65220997,676.89,676.62,0.9825732]
[1752175385760,1.65220997,676.89,676.63,0.9825732]
[1752175385961,1.65220997,676.89,676.64,0.9825732]
[1752175386163,1.65220997,676.89,676.65,0.9825732]
[1752175386364,1.65220997,676.9,676.66,0.9825732]
[1752175386665,1.65220997,676.9,676.67,0.9825732]
[1752175386866,1.65220997,676.89,676.5,1.72]
[1752175387065,1.65220997,676.89,676.51,0.98183481]
[1752175387361,1.65220997,676.89,676.52,0.98183481]
[1752175387561,1.65220997,676.89,676.53,0.98183481]
[1752175387765,1.65220997,676.89,676.54,0.98183481]
[1752175387965,1.65220997,676.89,676.55,0.98183481]
[1752175388265,1.65220997,676.9,676.56,0.98183481]
[1752175388466,1.65220997,676.9,676.57,0.98183481]
[1752175388666,1.65220997,676.9,676.58,0.98183481]
[1752175388867,1.65220997,676.9,676.59,0.98183481]
[1752175389167,1.65220997,676.9,676.6,0.98183481]
[1752175389365,1.65220997,676.9,676.61,0.98183481]
[1752175389663,1.65220997,676.9,676.62,0.98183481]
[1752175389868,1.65220997,676.87,676.5,1.72]
[1752175390065,1.65220997,676.87,676.51,0.98156347]
[1752175390266,1.65220997,676.87,676.52,0.98156347]
[1752175390467,1.65220997,676.87,676.53,0.98156347]
[1752175390661,1.65220997,676.87,676.54,0.98156347]
[1752175390863,1.65220997,676.87,676.55,0.98156347]
[1752175391067,1.65220997,676.87,676.56,0.98156347]
[1752175391363,1.65220997,676.87,676.57,0.98156347]
[1752175391663,1.65220997,676.87,676.58,0.98156347]
[1752175391862,1.65220997,676.87,676.59,0.98156347]
[1752175392067,1.65220997,676.87,676.6,0.98156347]
[1752175392262,1.65220997,676.87,676.61,0.98156347]
[1752175392466,1.65220997,676.87,676.5,1.72]
[1752175392664,1.65220997,676.87,676.51,0.98118564]
[1752175392964,1.65220997,676.87,676.52,0.98118564]
[1752175393170,1.65220997,676.87,676.53,0.98118564]
[1752175393368,1.65220997,676.87,676.54,0.98118564]
[1752175393567,1.65220997,676.87,676.55,0.98118564]
[1752175393866,1.65220997,676.87,676.56,0.98118564]
[1752175394064,1.65220997,676.87,676.57,0.98118564]
[1752175394267,1.65220997,676.87,676.58,0.98118564]
[1752175394571,1.65220997,676.83,676.59,0.98118564]
[1752175394770,1.65220997,676.83,676.6,0.98118564]
[1752175395072,1.65220997,676.83,676.61,0.98118564]
[1752175395367,1.65220997,676.83,676.5,1.72]
[1752175395567,1.65220997,676.83,676.51,0.98012982]
[1752175395766,1.65220997,676.83,676.52,0.98012982]
[1752175395969,1.65220997,676.83,676.53,0.98012982]
[1752175396168,1.65220997,676.82,676.54,0.98012982]
[1752175396372,1.65220997,676.82,676.55,0.98012982]
[1752175396669,1.65220997,676.82,676.56,0.98012982]
[1752175396871,1.65220997,676.85,676.57,0.98012982]
[1752175397167,1.65220997,676.85,676.58,0.98012982]
[1752175397368,1.65220997,676.85,676.59,0.97937884]
[1752175397567,1.65220997,676.85,676.6,0.97937884]
[1752175397867,1.65220997,676.85,676.23,0.25714634]
[1752175397868,1.65220997,676.85,676.61,0.97937884]
[1752175398078,1.65220997,676.85,676.62,0.97937884]
[1752175398272,1.65220997,676.86,676.63,0.97937884]
[1752175398472,1.65220997,676.86,676.64,0.97937884]
[1752175398672,1.65220997,676.86,676.65,0.97937884]
[1752175398868,1.65220997,676.9,676.66,0.97937884]
[1752175399072,1.65220997,677.0,676.67,0.97937884]
[1752175399269,1.65220997,677.0,676.68,0.97937884]
[1752175399469,1.65220997,677.0,676.69,0.97937884]
[1752175399673,1.65220997,677.0,676.7,0.97937884]
[1752175399871,1.65220997,677.0,676.71,0.97937884]
[1752175400169,1.65220997,677.0,676.72,0.97937884]
[1752175400371,1.65220997,677.0,676.73,0.97937884]
[1752175400571,1.65220997,677.0,676.74,0.97937884]
[1752175400771,1.65220997,677.0,676.75,0.97937884]
[1752175400976,1.65220997,677.0,676.76,0.97937884]
[1752175401271,0.25712069,677.05,676.77,0.97937884]
[1752175401272,1.65220997,676.99,676.77,0.97937884]
[1752175401473,1.65220997,676.99,676.78,0.97937884]
[1752175401676,1.65220997,676.99,676.69,1.414]
[1752175401875,1.65220997,676.99,676.7,0.9796065]
[1752175402075,1.65220997,676.99,676.71,0.9796065]
[1752175402277,1.65220997,676.99,676.72,0.9796065]
[1752175402476,1.65220997,676.99,676.73,0.9796065]
[1752175402676,1.65220997,676.99,676.74,0.9796065]
[1752175402877,1.65220997,676.99,676.75,0.9796065]
[1752175403177,1.65220997,676.99,676.76,0.9796065]
[1752175403477,1.65220997,676.98,676.77,0.97970676]
[1752175403780,1.65220997,676.98,676.78,0.97970676]
[1752175403977,1.65220997,676.98,676.69,1.414]
[1752175404279,1.65220997,676.98,676.7,0.9795213]
[1752175404474,1.65220997,676.98,676.71,0.9795213]
[1752175404675,1.65220997,676.98,676.72,0.9795213]
[1752175404876,1.65220997,676.98,676.73,0.9795213]
[1752175405179,1.65220997,676.98,676.74,0.9795213]
[1752175405377,1.65220997,676.98,676.69,1.414]
[1752175405378,1.65220997,676.98,676.75,0.9795213]
[1752175405582,1.65220997,676.98,676.76,0.9795213]
[1752175405781,1.65220997,676.98,676.77,0.9795213]
[1752175405986,1.65220997,676.98,676.78,0.9795213]
[1752175406282,1.65220997,676.97,676.69,1.414]
[1752175406485,1.65220997,676.97,676.7,0.97994068]
[1752175406782,1.65220997,676.97,676.71,0.97994068]
[1752175406983,1.65220997,676.97,676.72,0.97994068]
[1752175407284,1.65220997,676.97,676.73,0.97994068]
[1752175407481,0.25712069,677.05,676.69,1.414]
[1752175407482,1.65220997,676.99,676.74,0.97994068]
[1752175407685,1.65220997,676.99,676.75,0.97994068]
[1752175407882,1.65220997,676.99,676.76,0.97994068]
[1752175408183,1.65220997,676.97,676.77,0.97994068]
[1752175408383,1.65220997,676.97,676.78,0.97994068]
[1752175408582,1.65220997,676.97,676.79,0.97994068]
[1752175408781,1.65220997,676.97,676.69,1.414]
[1752175408986,1.65220997,676.97,676.7,0.98049841]
[1752175409183,1.65220997,676.97,676.69,1.414]
[1752175409184,1.65220997,676.97,676.71,0.98063702]
[1752175409382,1.65220997,676.97,676.72,0.98063702]
[1752175409587,1.65220997,676.97,676.73,0.98063702]
[1752175409883,1.65220997,676.97,676.74,0.98063702]
[1752175410083,1.65220997,676.97,676.75,0.98063702]
[1752175410388,1.65220997,676.96,676.76,0.98063702]
[1752175410584,1.65220997,676.96,676.77,0.98063702]
[1752175410787,1.65220997,676.97,676.78,0.98063702]
[1752175411088,1.65220997,676.96,676.79,0.98063702]
[1752175411288,1.65220997,676.96,676.23,0.25714634]
[1752175411485,1.65220997,676.96,676.24,0.98094753]
[1752175411688,1.65220997,676.96,676.25,0.98094753]
[1752175411988,1.65220997,676.96,676.26,0.98094753]
[1752175412187,1.65220997,676.96,676.27,0.98094753]
[1752175412384,1.65220997,676.96,676.28,0.98094753]
[1752175412590,1.65220997,676.96,676.29,0.98094753]
[1752175412888,1.65220997,676.96,676.3,0.98094753]
[1752175413090,1.65220997,676.95,676.31,0.98094753]
[1752175413390,1.65220997,676.95,676.32,0.98094753]
[1752175413587,1.65220997,676.95,676.33,0.98094753]
[1752175413791,1.65098017,676.95,676.34,0.98094753]
[1752175414089,1.65098017,676.95,676.35,0.98094753]
[1752175414290,1.65098017,676.95,676.36,0.98094753]
[1752175414485,1.65098017,676.95,676.37,0.98094753]
[1752175414688,1.65098017,676.95,676.38,0.98094753]
[1752175414886,1.65098017,676.95,676.39,0.98094753]
[1752175415086,1.65098017,676.94,676.3,1.488]
[1752175415288,1.65098017,676.94,676.31,0.98168258]
[1752175415486,1.65098017,676.94,676.32,0.98168258]
[1752175415687,1.65098017,676.94,676.33,0.98168258]
[1752175415990,1.65098017,676.94,676.34,0.98168258]
[1752175416192,1.65098017,676.94,676.35,0.98168258]
[1752175416389,1.65098017,676.94,676.36,0.98168258]
[1752175416587,0.25712069,677.05,676.37,0.98168258]
[1752175416588,1.65098017,676.93,676.37,0.98168258]
[1752175416790,1.65098017,676.93,676.38,0.98168258]
[1752175417091,1.65098017,676.93,676.39,0.98168258]
[1752175417288,1.65098017,676.93,676.4,0.98168258]
[1752175417492,1.65098017,676.9,676.41,0.98168258]
[1752175417692,1.65098017,676.9,676.42,0.98168258]
[1752175417990,1.65098017,676.91,676.43,0.98168258]
[1752175418188,1.65098017,676.91,676.3,1.488]
[1752175418189,1.65098017,676.9,676.44,0.98234117]
[1752175418387,1.65098017,676.9,676.45,0.98234117]
[1752175418590,1.65098017,676.9,676.46,0.98234117]
[1752175418788,1.65098017,676.9,676.47,0.98234117]
[1752175418990,1.65098017,676.9,676.48,0.98234117]
[1752175419193,1.65098017,676.89,676.49,0.98234117]
[1752175419393,1.65098017,676.89,676.5,0.98234117]
[1752175419591,1.65098017,676.89,676.51,0.98234117]
[1752175419891,1.65098017,676.89,676.52,0.98234117]
[1752175420096,1.65373005,676.89,676.53,0.98234117]
[1752175420396,1.65373005,676.89,676.54,0.98234117]
[1752175420696,1.65373005,676.89,676.3,1.488]
[1752175420697,1.65373005,676.87,676.55,0.98234117]
[1752175420897,1.65373005,676.87,676.3,1.488]
[1752175421197,0.25712069,677.05,676.31,0.98296593]
[1752175421198,1.65373005,676.86,676.31,0.98296593]
[1752175421397,1.65373005,676.86,676.32,0.98296593]
[1752175421692,1.65373005,676.86,676.33,0.98296593]
[1752175421897,1.65373005,676.86,676.34,0.98296593]
[1752175422193,1.65373005,676.85,676.35,0.98296593]
[1752175422492,1.65373005,676.85,676.36,0.98296593]
[1752175422692,1.65373005,676.85,676.37,0.98296593]
[1752175422892,1.65373005,676.85,676.38,0.98296593]
[1752175423096,1.65373005,676.85,676.39,0.98296593]
[1752175423297,1.65373005,676.84,676.4,0.98296593]
[1752175423494,1.65373005,676.84,676.41,0.98296593]
[1752175423799,1.65373005,676.84,676.42,0.98296593]
[1752175423995,1.65373005,676.84,676.43,0.98296593]
[1752175424195,1.65373005,676.83,676.44,0.98296593]
[1752175424498,1.65373005,676.83,676.45,0.98296593]
[1752175424695,1.65373005,676.83,676.46,0.98296593]
[1752175424899,1.65373005,676.83,676.47,0.98296593]
[1752175425099,1.65373005,676.83,676.3,1.488]
[1752175425100,1.65373005,676.82,676.48,0.98296593]
[1752175425296,1.65373005,676.82,676.49,0.98296593]
[1752175425499,1.65373005,676.82,676.3,1.488]
[1752175425500,1.65373005,676.82,676.5,0.98296593]
[1752175425801,1.65373005,676.82,676.51,0.98296593]
[1752175426098,1.65373005,676.75,676.52,0.98296593]
[1752175426300,1.65373005,676.75,676.53,0.98296593]
[1752175426599,1.65373005,676.75,676.54,0.98296593]
[1752175426797,1.65373005,676.75,676.55,0.98296593]
[1752175426996,1.65373005,676.75,676.56,0.98296593]
[1752175427197,1.65373005,676.75,676.57,0.98296593]
[1752175427394,1.65373005,676.75,676.3,1.488]
[1752175427395,1.65373005,676.75,676.58,0.98296593]
[1752175427596,1.65373005,676.75,676.59,0.98296593]
[1752175427800,1.65373005,676.74,676.6,0.98296593]
[1752175427996,1.65373005,676.74,676.61,0.98296593]
[1752175428296,1.65373005,676.74,676.62,0.98296593]
[1752175428497,1.65373005,676.74,676.3,1.488]
[1752175428498,1.65373005,676.74,676.63,0.98296593]
[1752175428697,1.65373005,676.74,676.64,0.98296593]
[1752175428896,1.65373005,676.74,676.65,0.98296593]
[1752175429096,1.65373005,676.74,676.66,0.98296593]
[1752175429301,1.65373005,676.74,676.67,0.98296593]
[1752175429500,1.65373005,676.74,676.68,0.98296593]
[1752175429702,1.65373005,676.73,676.69,0.98296593]
[1752175429897,1.65373005,676.73,676.7,0.98296593]
[1752175430100,1.65373005,676.73,676.71,0.98296593]
[1752175430302,1.65373005,676.73,676.72,0.98296593]
[1752175433205,2.20823116,676.84,676.72,0.98296593]
[1752175433504,2.20823116,676.84,676.23,0.25714634]
[1752175433704,1.6584638,676.72,676.24,0.98565764]
[1752175433901,1.6584638,676.72,676.25,0.98565764]
[1752175434105,1.6584638,676.72,676.26,0.98565764]
[1752175434304,1.6584638,676.72,676.27,0.98565764]
[1752175434600,1.6584638,676.72,676.28,0.98565764]
[1752175434810,1.6584638,676.72,676.29,0.98565764]
[1752175435006,1.6584638,676.72,676.3,0.98565764]
[1752175435204,1.6584638,676.72,676.31,0.98565764]
[1752175435507,1.6584638,676.72,676.23,0.25714634]
[1752175435508,1.6584638,676.72,676.32,2.63065764]
[1752175435707,1.6584638,676.72,676.33,0.98565764]
[1752175436006,1.6584638,676.72,676.34,0.98565764]
[1752175436208,1.6584638,676.72,676.35,0.98565764]
[1752175436402,2.20823116,676.85,676.32,1.645]
[1752175436403,1.6584638,676.74,676.36,0.98565764]
[1752175436603,1.6584638,676.74,676.37,0.98565764]
[1752175436804,1.6584638,676.74,676.38,0.98565764]
[1752175437006,1.6584638,676.74,676.39,0.98565764]
[1752175437203,1.6584638,676.74,676.4,0.98565764]
[1752175437406,1.6584638,676.74,676.41,0.98565764]
[1752175437609,1.6584638,676.74,676.42,0.98565764]
[1752175437810,1.6584638,676.74,676.43,0.98565764]
[1752175438009,1.6584638,676.74,676.44,0.98565764]
[1752175438207,1.6584638,676.74,676.45,0.98565764]
[1752175438407,1.6584638,676.82,676.46,0.98565764]
[1752175438607,1.6584638,676.82,676.47,0.98565764]
[1752175438808,1.6584638,676.82,676.48,0.98565764]
[1752175439010,1.6584638,676.82,676.49,0.98565764]
[1752175439207,1.6584638,676.82,676.5,0.98565764]
[1752175439409,1.6584638,676.82,676.51,0.98565764]
[1752175439612,1.6584638,676.82,676.52,0.98565764]
[1752175439811,1.6584638,676.82,676.53,0.98565764]
[1752175440011,1.6584638,676.83,676.54,0.98565764]
[1752175440311,1.6584638,676.83,676.32,1.645]
[1752175440312,1.6584638,676.83,676.55,0.98565764]
[1752175440507,1.6584638,676.83,676.56,0.98565764]
[1752175440712,1.6584638,676.83,676.57,0.98565764]
[1752175441013,1.6584638,676.83,676.58,0.98565764]
[1752175441213,1.6584638,676.83,676.59,0.98565764]
[1752175441409,1.6584638,676.83,676.6,0.98565764]
[1752175441710,1.6584638,676.83,676.61,0.98565764]
[1752175441919,1.6584638,676.83,676.62,0.98565764]
[1752175442112,1.6584638,676.83,676.63,0.98565764]
[1752175442415,1.6584638,676.83,676.64,0.98565764]
[1752175442614,1.6584638,676.83,676.65,0.98565764]
[1752175442814,1.6584638,676.83,676.66,0.98565764]
[1752175443013,1.6584638,676.83,676.67,0.98565764]
[1752175443211,1.6584638,676.83,676.68,0.98565764]
[1752175443416,1.6584638,676.83,676.69,0.98565764]
[1752175443609,1.6584638,676.83,676.7,0.98565764]
[1752175443814,1.6584638,676.83,676.71,0.98565764]
[1752175444014,1.6584638,676.83,676.72,0.98565764]
[1752175444213,1.6584638,676.83,676.73,0.98565764]
[1752175444414,1.6584638,676.83,676.74,0.98565764]
[1752175444717,1.6584638,676.89,676.75,0.98565764]
[1752175445013,1.6584638,676.89,676.76,0.98565764]
[1752175445214,1.6584638,676.89,676.77,0.98565764]
[1752175445416,1.6584638,676.89,676.78,0.98565764]
[1752175445717,1.6584638,676.89,676.79,0.98565764]
[1752175445915,1.6584638,676.89,676.8,0.98565764]
[1752175446115,1.6584638,676.89,676.81,0.98565764]
[1752175446414,1.6584638,676.89,676.82,0.98565764]
[1752175446618,1.6584638,676.89,676.83,0.98565764]
[1752175446820,1.6584638,676.89,676.84,0.98565764]
[1752175447117,2.20823116,676.99,676.32,1.645]
[1752175447314,1.65832958,676.83,676.33,0.98454308]
[1752175447517,1.65832958,676.83,676.34,0.98454308]
[1752175447719,1.65832958,676.83,676.35,0.98454308]
[1752175447921,1.65832958,676.83,676.36,0.98454308]
[1752175448114,1.65832958,676.83,676.37,0.98454308]
[1752175448319,1.65832958,676.83,676.38,0.98454308]
[1752175448619,1.65832958,676.83,676.39,0.98454308]
[1752175448915,1.65832958,676.82,676.4,0.98454308]
[1752175449120,1.65832958,676.82,676.41,0.98454308]
[1752175449318,1.65832958,676.82,676.42,0.98454308]
[1752175449520,1.65832958,676.82,676.43,0.98454308]
[1752175449721,1.65832958,676.84,676.44,0.98454308]
[1752175449920,1.65832958,676.83,676.45,0.98454308]
[1752175450117,2.20823116,676.98,676.32,1.645]
[1752175450118,1.65832958,676.82,676.46,0.98454308]
[1752175450318,1.65832958,676.82,676.47,0.98454308]
[1752175450618,1.65832958,676.81,676.48,0.98454308]
[1752175450917,1.65832958,676.81,676.49,0.98454308]
[1752175451220,1.65832958,676.84,676.5,0.98454308]
[1752175451416,1.65832958,676.84,676.51,0.98454308]
[1752175451623,1.65832958,676.83,676.52,0.98454308]
[1752175451821,1.65832958,676.83,676.53,0.98454308]
[1752175452121,1.65832958,676.81,676.54,0.98454308]
[1752175452320,1.65832958,676.81,676.55,0.98454308]
[1752175452521,1.65832958,676.81,676.56,0.98454308]
[1752175452724,1.65832958,676.79,676.57,0.98454308]
[1752175452924,1.65832958,676.79,676.58,0.98454308]
[1752175453225,1.65832958,676.71,676.59,0.98454308]
[1752175453524,1.65832958,676.73,676.6,0.98454308]
[1752175453723,1.65832958,676.73,676.61,0.98454308]
[1752175453924,1.65832958,676.73,676.62,0.98454308]
[1752175454224,1.65832958,676.73,676.63,0.98454308]
[1752175454423,1.65832958,676.73,676.64,0.98454308]
[1752175454722,1.65832958,676.73,676.65,0.98454308]
[1752175454919,1.65832958,676.73,676.66,0.98454308]
[1752175455124,1.65832958,676.73,676.67,0.98454308]
[1752175455426,1.65832958,676.73,676.68,0.98454308]
[1752175455624,1.65832958,676.73,676.69,0.98454308]
[1752175455823,1.65832958,676.73,676.7,0.98454308]
[1752175456023,1.65832958,676.73,676.71,0.98454308]
[1752175456220,1.65832958,676.73,676.72,0.98454308]
[1752175457227,2.20823116,676.88,676.72,0.98454308]
[1752175457428,2.20823116,676.88,676.73,0.98454308]
[1752175457627,2.20823116,676.88,676.74,0.98454308]
[1752175457824,2.20823116,676.88,676.75,0.98454308]
[1752175458024,2.20823116,676.88,676.76,0.98454308]
[1752175458322,2.20823116,676.88,676.77,0.98454308]
[1752175458524,2.20823116,676.88,676.32,1.645]
[1752175458726,1.65940865,676.72,676.33,0.98614392]
[1752175458922,1.65940865,676.72,676.34,0.98614392]
[1752175459226,1.65940865,676.72,676.35,0.98614392]
[1752175459427,1.65940865,676.72,676.36,0.98614392]
[1752175459624,1.65940865,676.72,676.37,0.98614392]
[1752175459929,1.65940865,676.72,676.38,0.98614392]
[1752175460127,1.65940865,676.72,676.39,0.98614392]
[1752175460331,1.65940865,676.68,676.4,0.98614392]
[1752175460531,1.65940865,676.68,676.41,0.98614392]
[1752175460728,1.65940865,676.71,676.42,0.98614392]
[1752175460926,1.65940865,676.72,676.43,0.98614392]
[1752175461131,1.65940865,676.73,676.44,0.98614392]
[1752175461426,1.65940865,676.73,676.45,0.98614392]
[1752175461632,1.65940865,676.73,676.46,0.98614392]
[1752175461830,1.65940865,676.73,676.47,0.98614392]
[1752175462027,1.65940865,676.73,676.48,0.98614392]
[1752175462230,1.65940865,676.73,676.49,0.98596241]
[1752175462430,1.65940865,676.73,676.5,0.98596241]
[1752175462631,1.65940865,676.73,676.51,0.98596241]
[1752175462831,1.65940865,676.73,676.52,0.98596241]
[1752175463028,1.65940865,676.73,676.53,0.98596241]
[1752175463230,1.65940865,676.73,676.54,0.98596241]
[1752175463428,1.65940865,676.73,676.55,0.98596241]
[1752175463631,1.65940865,676.73,676.56,0.98596241]
[1752175463832,1.65940865,676.73,676.57,0.98596241]
[1752175464132,1.65940865,676.73,676.58,0.98596241]
[1752175464332,1.65940865,676.73,676.59,0.98596241]
[1752175464532,1.65940865,676.74,676.6,0.98596241]
[1752175464730,1.65940865,676.74,676.61,0.98596241]
[1752175464933,1.65940865,676.74,676.62,0.98596241]
[1752175465134,1.65940865,676.74,676.32,1.645]
[1752175465334,1.65940865,676.74,676.33,0.98559189]
[1752175465535,1.65940865,676.76,676.34,0.98559189]
[1752175465836,1.65940865,676.76,676.35,0.98559189]
[1752175466037,1.65940865,676.76,676.36,0.98559189]
[1752175466232,1.65940865,676.76,676.37,0.98559189]
[1752175466535,1.65940865,676.76,676.38,0.98559189]
[1752175466842,1.65940865,676.76,676.39,0.98559189]
[1752175467042,0.25712069,677.05,676.4,0.98559189]
[1752175467043,1.65940865,676.75,676.4,0.98559189]
[1752175467344,1.65940865,676.75,676.41,0.98559189]
[1752175467545,1.65940865,676.75,676.42,0.98559189]
[1752175467742,1.65940865,676.75,676.43,0.98559189]
[1752175467938,1.65940865,676.75,676.44,0.98559189]
[1752175468140,1.65940865,676.75,676.45,0.98559189]
[1752175468439,1.65940865,676.75,676.46,0.98559189]
[1752175468644,1.65940865,676.75,676.47,0.98559189]
[1752175468844,1.65940865,676.75,676.48,0.98559189]
[1752175469039,1.65940865,676.75,676.49,0.98559189]
[1752175469343,1.65940865,676.75,676.5,0.98559189]
[1752175469540,1.65940865,676.75,676.51,0.98559189]
[1752175469740,1.65940865,676.75,676.52,0.98559189]
[1752175469941,1.65940865,676.75,676.53,0.98559189]
[1752175470144,1.65940865,676.75,676.54,0.98559189]
[1752175470445,1.65940865,676.75,676.55,0.98559189]
[1752175470746,1.65940865,676.75,676.56,0.98559189]
[1752175471045,1.65940865,676.75,676.57,0.98559189]
[1752175471240,1.65940865,676.75,676.58,0.98559189]
[1752175471540,1.65940865,676.75,676.59,0.98559189]
[1752175471744,1.65940865,676.75,676.6,0.98559189]
[1752175472045,1.65940865,676.74,676.61,0.98559189]
[1752175472241,1.65940865,676.74,676.62,0.98559189]
[1752175472442,1.65940865,676.74,676.63,0.98559189]
[1752175472741,1.65940865,676.74,676.64,0.98559189]
[1752175472942,1.65940865,676.74,676.65,0.98559189]
[1752175473147,1.65940865,676.74,676.66,0.98559189]
[1752175473346,1.65940865,676.74,676.67,0.98559189]
[1752175473547,1.65940865,676.74,676.68,0.98559189]
[1752175473843,1.65940865,676.74,676.69,0.98559189]
[1752175474144,1.65940865,676.74,676.7,0.98559189]
[1752175474343,2.20823116,676.88,676.32,1.645]
[1752175474344,1.65940865,676.72,676.71,0.98559189]
[1752175475247,3.31234674,676.96,676.71,0.98559189]
[1752175475248,2.20823116,676.83,676.71,0.98559189]
[1752175475445,2.20823116,676.83,676.72,0.98559189]
[1752175475743,2.20823116,676.82,676.73,0.98559189]
[1752175475948,1.65952015,676.81,676.74,0.98559189]
[1752175476144,1.65952015,676.81,676.75,0.98559189]
[1752175476347,1.65952015,676.81,676.76,0.98559189]
[1752175476648,1.65952015,676.81,676.77,0.98559189]
[1752175476948,1.65952015,676.8,676.78,0.98559189]
[1752175477246,1.65952015,676.8,676.79,0.98559189]
[1752175478344,1.65952015,676.9,676.79,0.98559189]
[1752175478546,1.65952015,676.9,676.8,0.98559189]
[1752175478744,1.65952015,676.89,676.81,0.98559189]
[1752175479044,1.65952015,676.89,676.82,0.98559189]
[1752175479241,1.65952015,676.89,676.32,1.645]
[1752175479242,1.65952015,676.9,676.83,0.98559189]
[1752175479448,1.65952015,676.9,676.84,0.98559189]
[1752175479648,1.65952015,676.9,676.85,0.98559189]
[1752175479845,1.65952015,676.9,676.86,0.98559189]
[1752175480050,1.65952015,676.9,676.87,0.98559189]
[1752175480248,1.65952015,676.9,676.88,0.98559189]
[1752175480452,1.65952015,676.9,676.89,0.98559189]
[1752175484454,1.65952015,676.91,676.89,0.98559189]
[1752175484654,2.20823116,677.05,676.9,0.98559189]
[1752175484852,2.20823116,677.05,676.32,1.645]
[1752175485054,1.65842923,676.89,676.33,0.98454746]
[1752175485252,1.65842923,676.89,676.34,0.98454746]
[1752175485456,1.65842923,676.89,676.35,0.98454746]
[1752175485753,1.65842923,676.89,676.36,0.98454746]
[1752175485953,2.20823116,677.0,676.37,0.98454746]
[1752175486151,1.6583218,676.86,676.38,0.98454746]
[1752175486355,1.6583218,676.86,676.39,0.98454746]
[1752175486553,1.6583218,676.86,676.4,0.98454746]
[1752175486751,1.6583218,676.86,676.41,0.98454746]
[1752175486952,1.6583218,676.86,676.42,0.98454746]
[1752175487152,1.6583218,676.85,676.43,0.98454746]
[1752175487355,1.6583218,676.85,676.44,0.98454746]
[1752175487655,1.6583218,676.85,676.45,0.98454746]
[1752175487859,1.6583218,676.85,676.46,0.98454746]
[1752175488056,1.6583218,676.85,676.47,0.98454746]
[1752175488256,1.6583218,676.85,676.48,0.98454746]
[1752175488560,1.6583218,676.85,676.49,0.98454746]
[1752175488763,1.6583218,676.86,676.5,0.98454746]
[1752175488956,1.6583218,676.86,676.51,0.98423015]
[1752175489255,1.6583218,676.86,676.52,0.98423015]
[1752175489460,1.6583218,676.87,676.53,0.98423015]
[1752175489659,1.6583218,676.87,676.32,1.645]
[1752175489660,1.6583218,676.87,676.54,0.98423015]
[1752175489860,1.6583218,676.87,676.55,0.98423015]
[1752175490156,1.6583218,676.87,676.56,0.98423015]
[1752175490359,1.6583218,676.87,676.57,0.98423015]
[1752175490553,1.6583218,676.87,676.58,0.98423015]
[1752175490755,1.6583218,676.87,676.59,0.98423015]
[1752175491059,1.6583218,676.87,676.6,0.98423015]
[1752175491355,1.6583218,676.87,676.61,0.98423015]
[1752175491559,1.6583218,676.87,676.62,0.98423015]
[1752175491760,1.6583218,676.87,676.63,0.98423015]
[1752175491956,1.6583218,676.87,676.64,0.98423015]
[1752175492155,1.6583218,676.87,676.65,0.98423015]
[1752175492361,1.6583218,676.88,676.66,0.98423015]
[1752175492661,1.6583218,676.88,676.67,0.98423015]
[1752175492859,1.6583218,676.88,676.68,0.98423015]
[1752175493060,1.6583218,676.88,676.69,0.98423015]
[1752175493257,1.6583218,676.88,676.7,0.98423015]
[1752175493560,1.6583218,676.88,676.71,0.98423015]
[1752175493759,1.6583218,676.88,676.3,1.64396464]
[1752175493760,1.6583218,676.88,676.72,0.98423015]
[1752175493959,1.6583218,676.88,676.73,0.98423015]
[1752175494159,1.6583218,676.88,676.74,0.98423015]
[1752175494360,1.6583218,676.88,676.75,0.98423015]
[1752175494562,1.6583218,676.87,676.76,0.98423015]
[1752175494759,1.6583218,676.87,676.77,0.98423015]
[1752175494962,1.6583218,676.87,676.78,0.98423015]
[1752175495162,1.6583218,676.87,676.69,1.728]
[1752175495362,1.6583218,676.87,676.7,0.98407734]
[1752175495564,1.6583218,676.87,676.71,0.98407734]
[1752175495862,1.6583218,676.87,676.72,0.98407734]
[1752175496061,1.6583218,676.87,676.73,0.98407734]
[1752175496263,1.6583218,676.87,676.74,0.98407734]
[1752175496464,1.6583218,676.87,676.75,0.98407734]
[1752175496760,1.6583218,676.87,676.76,0.98407734]
[1752175496961,1.6583218,676.87,676.77,0.98407734]
[1752175497261,1.6583218,676.87,676.78,0.98407734]
[1752175497464,1.6583218,676.87,676.79,0.98407734]
[1752175497763,1.6583218,676.87,676.8,0.98407734]
[1752175497963,1.6583218,676.87,676.81,0.98407734]
[1752175498161,1.6583218,676.87,676.82,0.98407734]
[1752175498466,1.6583218,676.87,676.83,0.98407734]
[1752175498666,1.6583218,676.87,676.69,1.728]
[1752175498866,1.6583218,676.87,676.7,0.98406539]
[1752175499063,1.6583218,676.87,676.71,0.98406539]
[1752175499260,1.6583218,676.87,676.72,0.98406539]
[1752175499464,1.6583218,676.87,676.73,0.98406539]
[1752175499662,1.6583218,676.87,676.74,0.98406539]
[1752175499860,1.6583218,676.87,676.75,0.98406539]
[1752175500062,1.6583218,676.87,676.76,0.98406539]
[1752175500266,1.6583218,676.87,676.77,0.98406539]
[1752175500565,1.6583218,676.87,676.78,0.98406539]
[1752175500766,1.6583218,676.87,676.79,0.98406539]
[1752175501061,1.6583218,676.87,676.8,0.98406539]